[Event "Titled Tuesday Blitz January 03 Early 2023"]
[White "Martynov, Pavel"]
[Black "Valle Maytin, Luis Enrique"]
[WhiteFideId "4101260"]
[BlackFideId "3503666"]
[WhiteElo "2414"]
[BlackElo "2241"]
[Result "0-1"]
[Round "08"]
[TimeControl "180+2"]
[Date "2023.01.03"]
[WhiteClock "0:00:01"]
[BlackClock "0:00:05"]

1. e4 {[%clk 0:03:00]}  c6 {[%clk 0:02:58]} 2. d4 {[%clk 0:03:00]}  d5 {[%clk 0:02:59]} 3. exd5 {[%clk 0:03:01]}  cxd5 {[%clk 0:02:50]} 4. c4 {[%clk 0:03:01]}  Nc6 {[%clk 0:02:46]} 5. Nc3 {[%clk 0:03:01]}  Nf6 {[%clk 0:02:46]} 6. Bg5 {[%clk 0:03:02]}  Ne4 {[%clk 0:02:43]} 7. cxd5 {[%clk 0:03:01]}  Nxc3 {[%clk 0:02:35]} 8. bxc3 {[%clk 0:03:01]}  Qxd5 {[%clk 0:02:36]} 9. Nf3 {[%clk 0:03:00]}  Bg4 {[%clk 0:02:35]} 10. Be3 {[%clk 0:02:57]}  e6 {[%clk 0:02:33]} 11. Be2 {[%clk 0:02:57]}  Be7 {[%clk 0:02:28]} 12. O-O {[%clk 0:02:56]}  O-O {[%clk 0:02:25]} 13. h3 {[%clk 0:02:57]}  Bh5 {[%clk 0:02:24]} 14. Rb1 {[%clk 0:02:56]}  Qd7 {[%clk 0:02:21]} 15. c4 {[%clk 0:02:41]}  Rad8 {[%clk 0:02:17]} 16. g4 {[%clk 0:02:27]}  Bg6 {[%clk 0:02:14]} 17. Rb5 {[%clk 0:02:24]}  a6 {[%clk 0:02:13]} 18. Rb6 {[%clk 0:02:19]}  Be4 {[%clk 0:02:10]} 19. Nd2 {[%clk 0:01:50]}  Bg6 {[%clk 0:02:09]} 20. Nf3 {[%clk 0:01:38]}  Be4 {[%clk 0:02:07]} 21. Nd2 {[%clk 0:01:36]}  Bg6 {[%clk 0:02:07]} 22. Nb3 {[%clk 0:01:35]}  Qc7 {[%clk 0:02:02]} 23. c5 {[%clk 0:01:28]}  Be4 {[%clk 0:01:58]} 24. Qc1 {[%clk 0:01:18]}  Bd5 {[%clk 0:01:56]} 25. Bc4 {[%clk 0:01:09]}  Bxc4 {[%clk 0:01:40]} 26. Qxc4 {[%clk 0:01:10]}  Rc8 {[%clk 0:01:40]} 27. Rb1 {[%clk 0:01:05]}  Ne5 {[%clk 0:01:24]} 28. Qe2 {[%clk 0:01:04]}  Nd7 {[%clk 0:01:18]} 29. Rb4 {[%clk 0:01:03]}  Nf6 {[%clk 0:01:10]} 30. Nd2 {[%clk 0:01:01]}  Rb8 {[%clk 0:01:10]} 31. Nc4 {[%clk 0:00:52]}  Nd5 {[%clk 0:01:10]} 32. R4b3 {[%clk 0:00:49]}  Rfc8 {[%clk 0:00:39]} 33. Nb6 {[%clk 0:00:46]}  Rd8 {[%clk 0:00:39]} 34. Qf3 {[%clk 0:00:44]}  g5 {[%clk 0:00:20]} 35. a4 {[%clk 0:00:26]}  Nxb6 {[%clk 0:00:20]} 36. Rxb6 {[%clk 0:00:25]}  Rd5 {[%clk 0:00:20]} 37. c6 {[%clk 0:00:22]}  Rbd8 {[%clk 0:00:14]} 38. Rxb7 {[%clk 0:00:20]}  Qd6 {[%clk 0:00:11]} 39. c7 {[%clk 0:00:08]}  Rc8 {[%clk 0:00:12]} 40. Rc1 {[%clk 0:00:07]}  Qd7 {[%clk 0:00:10]} 41. Rb8 {[%clk 0:00:07]}  Bf8 {[%clk 0:00:08]} 42. Rxc8 {[%clk 0:00:03]}  Qxc8 {[%clk 0:00:08]} 43. Qe2 {[%clk 0:00:02]}  Bd6 {[%clk 0:00:06]} 44. Qc4 {[%clk 0:00:02]}  Ra5 {[%clk 0:00:06]} 45. Bd2 {[%clk 0:00:03]}  Rd5 {[%clk 0:00:05]} 46. Qc6 {[%clk 0:00:03]}  Rxd4 {[%clk 0:00:05]} 47. Be3 {[%clk 0:00:01]}  Rd5 {[%clk 0:00:05]} 48. Bb6 {[%clk 0:00:01]}  Bxc7 {[%clk 0:00:05]} 0-1


[Site "https://www.chess.com"]

[Event "Titled Tuesday Blitz January 03 Early 2023"]
[White "Aloma Vidal, Robert"]
[Black "Jovic, Stanoje"]
[WhiteFideId "2260409"]
[BlackFideId "905020"]
[WhiteElo "2442"]
[BlackElo "2075"]
[Result "1-0"]
[Round "08"]
[TimeControl "180+2"]
[Date "2023.01.03"]
[WhiteClock "0:00:19"]
[BlackClock "0:00:34"]

1. e4 {[%clk 0:03:00]}  c6 {[%clk 0:02:59]} 2. d4 {[%clk 0:03:01]}  d5 {[%clk 0:02:59]} 3. e5 {[%clk 0:03:02]}  c5 {[%clk 0:02:59]} 4. dxc5 {[%clk 0:03:01]}  e6 {[%clk 0:02:59]} 5. Bd3 {[%clk 0:03:00]}  Bxc5 {[%clk 0:02:59]} 6. Qg4 {[%clk 0:02:59]}  Ne7 {[%clk 0:02:57]} 7. b4 {[%clk 0:03:00]}  h5 {[%clk 0:02:50]} 8. Qf4 {[%clk 0:02:56]}  Bb6 {[%clk 0:02:46]} 9. Nf3 {[%clk 0:02:52]}  Nbc6 {[%clk 0:02:41]} 10. b5 {[%clk 0:02:45]}  Na5 {[%clk 0:02:39]} 11. Nbd2 {[%clk 0:02:06]}  Bd7 {[%clk 0:02:38]} 12. O-O {[%clk 0:02:02]}  Rc8 {[%clk 0:02:38]} 13. Ba3 {[%clk 0:02:01]}  Bc5 {[%clk 0:02:13]} 14. Bb2 {[%clk 0:02:00]}  Nf5 {[%clk 0:02:02]} 15. h3 {[%clk 0:01:55]}  Be7 {[%clk 0:01:51]} 16. Nd4 {[%clk 0:00:56]}  g5 {[%clk 0:01:47]} 17. Qf3 {[%clk 0:00:55]}  g4 {[%clk 0:01:46]} 18. hxg4 {[%clk 0:00:50]}  hxg4 {[%clk 0:01:46]} 19. Qxg4 {[%clk 0:00:50]}  Nxd4 {[%clk 0:01:37]} 20. Bxd4 {[%clk 0:00:50]}  Nc4 {[%clk 0:01:37]} 21. Nxc4 {[%clk 0:00:48]}  dxc4 {[%clk 0:01:35]} 22. Be4 {[%clk 0:00:48]}  Bxb5 {[%clk 0:01:31]} 23. Rad1 {[%clk 0:00:47]}  Qc7 {[%clk 0:01:24]} 24. Qg7 {[%clk 0:00:47]}  Rf8 {[%clk 0:01:23]} 25. f4 {[%clk 0:00:46]}  Bc6 {[%clk 0:01:23]} 26. Bxc6+ {[%clk 0:00:42]}  Qxc6 {[%clk 0:01:23]} 27. f5 {[%clk 0:00:42]}  c3 {[%clk 0:01:21]} 28. Rf3 {[%clk 0:00:35]}  Bc5 {[%clk 0:01:17]} 29. Kh2 {[%clk 0:00:32]}  Bxd4 {[%clk 0:01:14]} 30. Rxd4 {[%clk 0:00:33]}  Qc5 {[%clk 0:01:05]} 31. Rd6 {[%clk 0:00:30]}  exf5 {[%clk 0:00:46]} 32. Rxf5 {[%clk 0:00:26]}  Rc6 {[%clk 0:00:46]} 33. Qf6 {[%clk 0:00:20]}  Qe3 {[%clk 0:00:34]} 34. Rd8# {[%clk 0:00:19]} 1-0


[Site "https://www.chess.com"]

[Event "Titled Tuesday Blitz January 03 Early 2023"]
[White "Piesik, Piotr"]
[Black "Ansh M Shah"]
[WhiteFideId "1136194"]
[BlackFideId "25033379"]
[WhiteElo "2426"]
[BlackElo "2171"]
[Result "0-1"]
[Round "08"]
[TimeControl "180+2"]
[Date "2023.01.03"]
[WhiteClock "0:00:22"]
[BlackClock "0:00:12"]

1. Nf3 {[%clk 0:02:55]}  Nf6 {[%clk 0:02:59]} 2. g3 {[%clk 0:02:55]}  e6 {[%clk 0:03:00]} 3. Bg2 {[%clk 0:02:55]}  d5 {[%clk 0:03:01]} 4. O-O {[%clk 0:02:56]}  c5 {[%clk 0:03:01]} 5. d3 {[%clk 0:02:56]}  Nc6 {[%clk 0:03:01]} 6. Nbd2 {[%clk 0:02:57]}  Be7 {[%clk 0:03:02]} 7. e4 {[%clk 0:02:57]}  O-O {[%clk 0:03:02]} 8. Re1 {[%clk 0:02:57]}  d4 {[%clk 0:03:02]} 9. a4 {[%clk 0:02:56]}  b6 {[%clk 0:03:01]} 10. Nc4 {[%clk 0:02:55]}  Bb7 {[%clk 0:03:01]} 11. a5 {[%clk 0:02:53]}  b5 {[%clk 0:03:01]} 12. a6 {[%clk 0:02:54]}  Bc8 {[%clk 0:03:01]} 13. Nce5 {[%clk 0:02:52]}  Nxe5 {[%clk 0:03:00]} 14. Nxe5 {[%clk 0:02:52]}  Qb6 {[%clk 0:02:57]} 15. f4 {[%clk 0:02:40]}  Bxa6 {[%clk 0:02:53]} 16. g4 {[%clk 0:02:38]}  Bc8 {[%clk 0:02:53]} 17. f5 {[%clk 0:02:31]}  Nd7 {[%clk 0:02:49]} 18. Nf3 {[%clk 0:02:26]}  Bb7 {[%clk 0:02:45]} 19. Bf4 {[%clk 0:02:21]}  a5 {[%clk 0:02:32]} 20. g5 {[%clk 0:02:11]}  a4 {[%clk 0:02:13]} 21. h4 {[%clk 0:02:02]}  Rfe8 {[%clk 0:02:02]} 22. h5 {[%clk 0:02:01]}  Bf8 {[%clk 0:01:27]} 23. g6 {[%clk 0:01:51]}  exf5 {[%clk 0:01:20]} 24. gxf7+ {[%clk 0:01:50]}  Kxf7 {[%clk 0:01:19]} 25. h6 {[%clk 0:01:37]}  gxh6 {[%clk 0:01:12]} 26. Nh4 {[%clk 0:01:32]}  fxe4 {[%clk 0:01:04]} 27. Qh5+ {[%clk 0:01:32]}  Kg8 {[%clk 0:01:03]} 28. Bxe4 {[%clk 0:01:30]}  Bxe4 {[%clk 0:01:02]} 29. dxe4 {[%clk 0:01:29]}  Nf6 {[%clk 0:00:54]} 30. Qf3 {[%clk 0:01:24]}  Qe6 {[%clk 0:00:52]} 31. Nf5 {[%clk 0:01:19]}  Nxe4 {[%clk 0:00:44]} 32. Rxe4 {[%clk 0:00:53]}  Qxe4 {[%clk 0:00:41]} 33. Qg4+ {[%clk 0:00:45]}  Kh8 {[%clk 0:00:40]} 34. Rf1 {[%clk 0:00:44]}  Re6 {[%clk 0:00:23]} 35. Nh4 {[%clk 0:00:40]}  Bd6 {[%clk 0:00:15]} 36. Kh2 {[%clk 0:00:31]}  Rg8 {[%clk 0:00:14]} 37. Qf5 {[%clk 0:00:20]}  Qxf5 {[%clk 0:00:13]} 38. Nxf5 {[%clk 0:00:21]}  Bxf4+ {[%clk 0:00:12]} 39. Rxf4 {[%clk 0:00:22]}  Rf8 {[%clk 0:00:12]} 0-1


[Site "https://www.chess.com"]

[Event "Titled Tuesday Blitz January 03 Early 2023"]
[White "Ingebretsen, Jens E"]
[Black "Ljukin, Sergei"]
[WhiteFideId "1522965"]
[BlackFideId "14102200"]
[WhiteElo "2342"]
[BlackElo "2362"]
[Result "0-1"]
[Round "08"]
[TimeControl "180+2"]
[Date "2023.01.03"]
[WhiteClock "0:00:14"]
[BlackClock "0:00:08"]

1. d4 {[%clk 0:03:00]}  d5 {[%clk 0:02:53]} 2. Nf3 {[%clk 0:03:01]}  Nf6 {[%clk 0:02:52]} 3. Bf4 {[%clk 0:03:02]}  c5 {[%clk 0:02:52]} 4. e3 {[%clk 0:03:03]}  Nc6 {[%clk 0:02:53]} 5. Nbd2 {[%clk 0:03:03]}  Bf5 {[%clk 0:02:51]} 6. c3 {[%clk 0:03:02]}  e6 {[%clk 0:02:51]} 7. Be2 {[%clk 0:02:59]}  Bd6 {[%clk 0:02:51]} 8. O-O {[%clk 0:02:59]}  Bxf4 {[%clk 0:02:50]} 9. exf4 {[%clk 0:03:00]}  cxd4 {[%clk 0:02:48]} 10. cxd4 {[%clk 0:03:01]}  O-O {[%clk 0:02:47]} 11. Nb3 {[%clk 0:02:59]}  Ne4 {[%clk 0:02:38]} 12. Ne5 {[%clk 0:02:56]}  Rc8 {[%clk 0:02:30]} 13. Rc1 {[%clk 0:02:53]}  Nxe5 {[%clk 0:01:46]} 14. Rxc8 {[%clk 0:02:41]}  Qxc8 {[%clk 0:01:42]} 15. fxe5 {[%clk 0:02:39]}  f6 {[%clk 0:01:35]} 16. f3 {[%clk 0:02:34]}  Ng5 {[%clk 0:01:35]} 17. h4 {[%clk 0:02:34]}  Nf7 {[%clk 0:01:35]} 18. g4 {[%clk 0:02:33]}  Bc2 {[%clk 0:01:33]} 19. Qd2 {[%clk 0:02:30]}  Bxb3 {[%clk 0:01:32]} 20. exf6 {[%clk 0:02:14]}  Qc2 {[%clk 0:00:55]} 21. Qf4 {[%clk 0:02:04]}  Qxe2 {[%clk 0:00:39]} 22. fxg7 {[%clk 0:02:03]}  Kxg7 {[%clk 0:00:36]} 23. axb3 {[%clk 0:02:03]}  e5 {[%clk 0:00:24]} 24. dxe5 {[%clk 0:01:25]}  Qxe5 {[%clk 0:00:23]} 25. Qd2 {[%clk 0:01:19]}  Qg3+ {[%clk 0:00:20]} 26. Qg2 {[%clk 0:01:20]}  Qxh4 {[%clk 0:00:19]} 27. f4 {[%clk 0:01:17]}  Rd8 {[%clk 0:00:14]} 28. f5 {[%clk 0:01:11]}  d4 {[%clk 0:00:12]} 29. f6+ {[%clk 0:01:11]}  Kg8 {[%clk 0:00:11]} 30. Rf5 {[%clk 0:01:07]}  d3 {[%clk 0:00:11]} 31. Rh5 {[%clk 0:01:06]}  Qe1+ {[%clk 0:00:10]} 32. Kh2 {[%clk 0:01:07]}  d2 {[%clk 0:00:10]} 33. g5 {[%clk 0:00:12]}  d1=Q {[%clk 0:00:09]} 34. g6 {[%clk 0:00:13]}  Qxh5+ {[%clk 0:00:09]} 35. Qh3 {[%clk 0:00:14]}  Qf2+ {[%clk 0:00:08]} 36. Kh1 {[%clk 0:00:14]}  Qxh3# {[%clk 0:00:08]} 0-1


[Site "https://www.chess.com"]

[Event "Titled Tuesday Blitz January 03 Early 2023"]
[White "Pein, Jonathan"]
[Black "Goroshkov, Maksym"]
[WhiteFideId "417092"]
[BlackFideId "14142716"]
[WhiteElo "2265"]
[BlackElo "2287"]
[Result "1/2-1/2"]
[Round "08"]
[TimeControl "180+2"]
[Date "2023.01.03"]
[WhiteClock "0:00:09"]
[BlackClock "0:00:10"]

1. e4 {[%clk 0:03:00]}  e5 {[%clk 0:02:59]} 2. Nc3 {[%clk 0:02:59]}  Nf6 {[%clk 0:02:59]} 3. Nf3 {[%clk 0:03:00]}  Nc6 {[%clk 0:02:59]} 4. g3 {[%clk 0:02:59]}  Be7 {[%clk 0:02:58]} 5. Bg2 {[%clk 0:03:00]}  O-O {[%clk 0:02:59]} 6. O-O {[%clk 0:03:00]}  d6 {[%clk 0:02:59]} 7. d4 {[%clk 0:03:01]}  Bg4 {[%clk 0:02:57]} 8. d5 {[%clk 0:02:57]}  Nd4 {[%clk 0:02:56]} 9. Be3 {[%clk 0:02:57]}  Nxf3+ {[%clk 0:02:17]} 10. Bxf3 {[%clk 0:02:58]}  Bh3 {[%clk 0:02:15]} 11. Bg2 {[%clk 0:02:49]}  Bxg2 {[%clk 0:02:15]} 12. Kxg2 {[%clk 0:02:50]}  Qd7 {[%clk 0:02:07]} 13. a4 {[%clk 0:02:50]}  Ng4 {[%clk 0:02:06]} 14. Bd2 {[%clk 0:02:21]}  f5 {[%clk 0:02:05]} 15. f3 {[%clk 0:02:22]}  Nf6 {[%clk 0:02:04]} 16. a5 {[%clk 0:02:15]}  c6 {[%clk 0:02:00]} 17. Bg5 {[%clk 0:02:01]}  Nxd5 {[%clk 0:01:49]} 18. exd5 {[%clk 0:01:55]}  Bxg5 {[%clk 0:01:48]} 19. a6 {[%clk 0:01:56]}  c5 {[%clk 0:01:46]} 20. axb7 {[%clk 0:01:53]}  Qxb7 {[%clk 0:01:47]} 21. Qd3 {[%clk 0:01:52]}  a6 {[%clk 0:01:39]} 22. Ra4 {[%clk 0:01:50]}  a5 {[%clk 0:01:18]} 23. Rfa1 {[%clk 0:01:49]}  Bd8 {[%clk 0:01:18]} 24. Qb5 {[%clk 0:01:50]}  Qf7 {[%clk 0:01:13]} 25. Qc6 {[%clk 0:01:50]}  Be7 {[%clk 0:01:01]} 26. Rxa5 {[%clk 0:01:48]}  Rac8 {[%clk 0:01:00]} 27. Qd7 {[%clk 0:01:42]}  Rfd8 {[%clk 0:00:57]} 28. Qe6 {[%clk 0:01:20]}  Qxe6 {[%clk 0:00:56]} 29. dxe6 {[%clk 0:01:21]}  d5 {[%clk 0:00:57]} 30. Ra7 {[%clk 0:01:21]}  Kf8 {[%clk 0:00:46]} 31. Rd7 {[%clk 0:01:06]}  Rxd7 {[%clk 0:00:19]} 32. exd7 {[%clk 0:01:07]}  Rd8 {[%clk 0:00:20]} 33. Nxd5 {[%clk 0:00:27]}  Rxd7 {[%clk 0:00:20]} 34. c4 {[%clk 0:00:27]}  Rb7 {[%clk 0:00:19]} 35. Ra2 {[%clk 0:00:24]}  Bf6 {[%clk 0:00:15]} 36. Kf2 {[%clk 0:00:24]}  e4 {[%clk 0:00:14]} 37. Nxf6 {[%clk 0:00:22]}  gxf6 {[%clk 0:00:14]} 38. fxe4 {[%clk 0:00:23]}  fxe4 {[%clk 0:00:14]} 39. Ke3 {[%clk 0:00:24]}  f5 {[%clk 0:00:15]} 40. Kf4 {[%clk 0:00:23]}  Rb3 {[%clk 0:00:13]} 41. Kxf5 {[%clk 0:00:23]}  e3 {[%clk 0:00:13]} 42. Kf6 {[%clk 0:00:22]}  Ke8 {[%clk 0:00:13]} 43. Ra7 {[%clk 0:00:17]}  Rb6+ {[%clk 0:00:11]} 44. Kf5 {[%clk 0:00:15]}  e2 {[%clk 0:00:11]} 45. Ra1 {[%clk 0:00:15]}  Rxb2 {[%clk 0:00:12]} 46. Ke5 {[%clk 0:00:15]}  Rd2 {[%clk 0:00:12]} 47. Ke6 {[%clk 0:00:12]}  Kd8 {[%clk 0:00:11]} 48. Re1 {[%clk 0:00:13]}  Kc7 {[%clk 0:00:11]} 49. Ke5 {[%clk 0:00:13]}  Kc6 {[%clk 0:00:11]} 50. Ke4 {[%clk 0:00:14]}  Kd6 {[%clk 0:00:10]} 51. Ke3 {[%clk 0:00:10]}  Rc2 {[%clk 0:00:10]} 52. Rxe2 {[%clk 0:00:10]}  Rxc4 {[%clk 0:00:09]} 53. Rd2+ {[%clk 0:00:10]}  Ke5 {[%clk 0:00:09]} 54. Rd7 {[%clk 0:00:08]}  h5 {[%clk 0:00:09]} 55. Rh7 {[%clk 0:00:08]}  Rc3+ {[%clk 0:00:09]} 56. Kd2 {[%clk 0:00:08]}  Ra3 {[%clk 0:00:10]} 57. Rxh5+ {[%clk 0:00:09]}  Ke4 {[%clk 0:00:10]} 58. Rh4+ {[%clk 0:00:10]}  Kf3 {[%clk 0:00:10]} 59. Rf4+ {[%clk 0:00:09]}  Kg2 {[%clk 0:00:09]} 60. Rf5 {[%clk 0:00:08]}  c4 {[%clk 0:00:09]} 61. Kc2 {[%clk 0:00:06]}  Kxh2 {[%clk 0:00:09]} 62. Rc5 {[%clk 0:00:06]}  Rxg3 {[%clk 0:00:08]} 63. Rxc4 {[%clk 0:00:07]}  Rg2+ {[%clk 0:00:09]} 64. Kb3 {[%clk 0:00:07]}  Rg3+ {[%clk 0:00:10]} 65. Rc3 {[%clk 0:00:08]}  Rxc3+ {[%clk 0:00:10]} 66. Kxc3 {[%clk 0:00:09]} 1/2-1/2


[Site "https://www.chess.com"]

[Event "Titled Tuesday Blitz January 03 Early 2023"]
[White "Batsiashvili, Nino"]
[Black "Sourath Biswas"]
[WhiteFideId "13602993"]
[BlackFideId "35091484"]
[WhiteElo "2467"]
[BlackElo "2281"]
[Result "1-0"]
[Round "08"]
[TimeControl "180+2"]
[Date "2023.01.03"]
[WhiteClock "0:00:44"]
[BlackClock "0:00:02"]

1. d4 {[%clk 0:03:00]}  Nf6 {[%clk 0:02:59]} 2. Nf3 {[%clk 0:03:01]}  g6 {[%clk 0:02:59]} 3. Bg5 {[%clk 0:03:01]}  Bg7 {[%clk 0:03:00]} 4. Nbd2 {[%clk 0:03:01]}  d5 {[%clk 0:02:57]} 5. e3 {[%clk 0:03:01]}  O-O {[%clk 0:02:57]} 6. Be2 {[%clk 0:03:01]}  c5 {[%clk 0:02:58]} 7. O-O {[%clk 0:02:58]}  b6 {[%clk 0:02:57]} 8. a4 {[%clk 0:02:58]}  Nc6 {[%clk 0:02:56]} 9. Ne5 {[%clk 0:02:39]}  Bb7 {[%clk 0:02:43]} 10. Nxc6 {[%clk 0:02:33]}  Bxc6 {[%clk 0:02:44]} 11. a5 {[%clk 0:02:34]}  c4 {[%clk 0:02:32]} 12. a6 {[%clk 0:02:17]}  h6 {[%clk 0:02:25]} 13. Bf4 {[%clk 0:02:14]}  Nd7 {[%clk 0:02:22]} 14. Bf3 {[%clk 0:02:13]}  e5 {[%clk 0:02:19]} 15. dxe5 {[%clk 0:02:13]}  Nxe5 {[%clk 0:02:19]} 16. Bxe5 {[%clk 0:02:13]}  Bxe5 {[%clk 0:02:20]} 17. Nxc4 {[%clk 0:02:13]}  Bg7 {[%clk 0:01:21]} 18. c3 {[%clk 0:02:12]}  Rc8 {[%clk 0:00:24]} 19. Nd2 {[%clk 0:02:08]}  Bb5 {[%clk 0:00:24]} 20. Re1 {[%clk 0:02:04]}  Qg5 {[%clk 0:00:23]} 21. Nb3 {[%clk 0:02:01]}  Rfd8 {[%clk 0:00:19]} 22. Nd4 {[%clk 0:02:00]}  Bd7 {[%clk 0:00:20]} 23. Qd3 {[%clk 0:01:52]}  Rc5 {[%clk 0:00:18]} 24. Red1 {[%clk 0:01:43]}  Bc8 {[%clk 0:00:16]} 25. Ne2 {[%clk 0:01:40]}  Bf6 {[%clk 0:00:11]} 26. Nf4 {[%clk 0:01:39]}  Bf5 {[%clk 0:00:08]} 27. Qd2 {[%clk 0:01:36]}  Be4 {[%clk 0:00:08]} 28. Bxe4 {[%clk 0:01:24]}  dxe4 {[%clk 0:00:09]} 29. Qc2 {[%clk 0:01:20]}  Rxd1+ {[%clk 0:00:10]} 30. Rxd1 {[%clk 0:01:20]}  Qe5 {[%clk 0:00:09]} 31. Rd4 {[%clk 0:01:16]}  Ra5 {[%clk 0:00:07]} 32. g3 {[%clk 0:01:08]}  Qb5 {[%clk 0:00:06]} 33. Rd1 {[%clk 0:01:02]}  Rxa6 {[%clk 0:00:05]} 34. Qxe4 {[%clk 0:01:01]}  Qxb2 {[%clk 0:00:06]} 35. Qe8+ {[%clk 0:00:53]}  Kg7 {[%clk 0:00:06]} 36. Rd7 {[%clk 0:00:51]}  Ra1+ {[%clk 0:00:02]} 37. Kg2 {[%clk 0:00:50]}  Qb3 {[%clk 0:00:02]} 38. Ne6+ {[%clk 0:00:44]} 1-0


[Site "https://www.chess.com"]

[Event "Titled Tuesday Blitz January 03 Early 2023"]
[White "Freitag, Manfred"]
[Black "Perez Rodriguez, Jennifer"]
[WhiteFideId "1602004"]
[BlackFideId "3507831"]
[WhiteElo "2352"]
[BlackElo "2242"]
[Result "1-0"]
[Round "08"]
[TimeControl "180+2"]
[Date "2023.01.03"]
[WhiteClock "0:01:54"]
[BlackClock "0:00:43"]

1. e4 {[%clk 0:03:00]}  e5 {[%clk 0:02:58]} 2. Nf3 {[%clk 0:03:00]}  Nc6 {[%clk 0:02:55]} 3. Bb5 {[%clk 0:02:59]}  f5 {[%clk 0:02:55]} 4. d3 {[%clk 0:02:59]}  fxe4 {[%clk 0:02:49]} 5. dxe4 {[%clk 0:03:00]}  Nf6 {[%clk 0:02:50]} 6. O-O {[%clk 0:03:00]}  d6 {[%clk 0:02:48]} 7. Bc4 {[%clk 0:02:52]}  Na5 {[%clk 0:02:48]} 8. Bd3 {[%clk 0:02:48]}  Be7 {[%clk 0:02:47]} 9. Bd2 {[%clk 0:02:40]}  Nc6 {[%clk 0:02:46]} 10. Bc4 {[%clk 0:02:40]}  Bg4 {[%clk 0:02:46]} 11. Re1 {[%clk 0:02:37]}  Nd4 {[%clk 0:02:43]} 12. Nxd4 {[%clk 0:02:32]}  Bxd1 {[%clk 0:02:29]} 13. Ne6 {[%clk 0:02:31]}  Bxc2 {[%clk 0:02:02]} 14. Nxd8 {[%clk 0:02:21]}  Rxd8 {[%clk 0:02:01]} 15. Nc3 {[%clk 0:02:19]}  c6 {[%clk 0:01:43]} 16. Rac1 {[%clk 0:02:18]}  Bxe4 {[%clk 0:01:42]} 17. Nxe4 {[%clk 0:02:15]}  Nxe4 {[%clk 0:01:41]} 18. Rxe4 {[%clk 0:02:15]}  d5 {[%clk 0:01:42]} 19. Rxe5 {[%clk 0:02:15]}  dxc4 {[%clk 0:01:41]} 20. Bb4 {[%clk 0:02:15]}  Rd7 {[%clk 0:01:41]} 21. Rce1 {[%clk 0:02:15]}  O-O {[%clk 0:01:35]} 22. Bxe7 {[%clk 0:02:13]}  Re8 {[%clk 0:01:34]} 23. Bb4 {[%clk 0:02:12]}  Rxe5 {[%clk 0:01:31]} 24. Rxe5 {[%clk 0:02:11]}  b6 {[%clk 0:01:19]} 25. Kf1 {[%clk 0:02:10]}  c5 {[%clk 0:01:19]} 26. Bc3 {[%clk 0:02:10]}  Kf7 {[%clk 0:01:15]} 27. a4 {[%clk 0:02:09]}  Rd1+ {[%clk 0:01:12]} 28. Re1 {[%clk 0:02:08]}  Rd5 {[%clk 0:01:09]} 29. g4 {[%clk 0:02:05]}  a6 {[%clk 0:01:09]} 30. h3 {[%clk 0:02:03]}  b5 {[%clk 0:01:10]} 31. axb5 {[%clk 0:02:03]}  axb5 {[%clk 0:01:11]} 32. Re5 {[%clk 0:02:03]}  Rd1+ {[%clk 0:01:07]} 33. Ke2 {[%clk 0:02:03]}  Rb1 {[%clk 0:00:55]} 34. Rxc5 {[%clk 0:02:02]}  b4 {[%clk 0:00:56]} 35. Bxb4 {[%clk 0:01:58]}  Rxb2+ {[%clk 0:00:56]} 36. Bd2 {[%clk 0:01:59]}  Rb3 {[%clk 0:00:53]} 37. f3 {[%clk 0:01:57]}  Rb1 {[%clk 0:00:46]} 38. Rxc4 {[%clk 0:01:56]}  Rh1 {[%clk 0:00:46]} 39. Rc7+ {[%clk 0:01:55]}  Kg6 {[%clk 0:00:42]} 40. Bc3 {[%clk 0:01:55]}  Rh2+ {[%clk 0:00:42]} 41. Ke3 {[%clk 0:01:55]}  Rxh3 {[%clk 0:00:42]} 42. Rxg7+ {[%clk 0:01:55]}  Kh6 {[%clk 0:00:43]} 43. g5+ {[%clk 0:01:54]} 1-0


[Site "https://www.chess.com"]

[Event "Titled Tuesday Blitz January 03 Early 2023"]
[White "Blokhin, Sofia"]
[Black "Christie, Joshua"]
[WhiteFideId "4508190"]
[BlackFideId "7402074"]
[WhiteElo "2062"]
[BlackElo "2294"]
[Result "0-1"]
[Round "08"]
[TimeControl "180+2"]
[Date "2023.01.03"]
[WhiteClock "0:00:07"]
[BlackClock "0:00:21"]

1. d4 {[%clk 0:03:00]}  Nf6 {[%clk 0:02:59]} 2. c4 {[%clk 0:03:00]}  e6 {[%clk 0:03:00]} 3. Nc3 {[%clk 0:03:00]}  Bb4 {[%clk 0:03:01]} 4. f3 {[%clk 0:03:00]}  d5 {[%clk 0:03:01]} 5. e3 {[%clk 0:02:58]}  O-O {[%clk 0:02:54]} 6. a3 {[%clk 0:02:57]}  Be7 {[%clk 0:02:54]} 7. cxd5 {[%clk 0:02:51]}  exd5 {[%clk 0:02:53]} 8. Bd3 {[%clk 0:02:51]}  c5 {[%clk 0:02:53]} 9. Nge2 {[%clk 0:02:46]}  Nc6 {[%clk 0:02:53]} 10. Bb1 {[%clk 0:02:44]}  Re8 {[%clk 0:02:53]} 11. O-O {[%clk 0:02:44]}  a6 {[%clk 0:02:48]} 12. Qc2 {[%clk 0:02:41]}  g6 {[%clk 0:02:47]} 13. Ba2 {[%clk 0:02:34]}  Bf5 {[%clk 0:02:31]} 14. e4 {[%clk 0:02:24]}  dxe4 {[%clk 0:02:24]} 15. fxe4 {[%clk 0:02:10]}  Nxd4 {[%clk 0:02:23]} 16. Nxd4 {[%clk 0:01:57]}  Qxd4+ {[%clk 0:02:22]} 17. Kh1 {[%clk 0:01:57]}  Be6 {[%clk 0:01:27]} 18. Bxe6 {[%clk 0:01:53]}  fxe6 {[%clk 0:01:28]} 19. Bg5 {[%clk 0:01:49]}  Ng4 {[%clk 0:01:22]} 20. Rad1 {[%clk 0:01:39]}  Qg7 {[%clk 0:01:12]} 21. Bxe7 {[%clk 0:01:34]}  Qxe7 {[%clk 0:01:05]} 22. e5 {[%clk 0:01:27]}  Ne3 {[%clk 0:01:02]} 23. Qe4 {[%clk 0:01:19]}  Nxf1 {[%clk 0:01:02]} 24. Rxf1 {[%clk 0:01:19]}  Rf8 {[%clk 0:01:03]} 25. Re1 {[%clk 0:01:16]}  Rf5 {[%clk 0:00:56]} 26. Qc4 {[%clk 0:01:12]}  Raf8 {[%clk 0:00:53]} 27. h3 {[%clk 0:01:11]}  b5 {[%clk 0:00:54]} 28. Qd3 {[%clk 0:01:07]}  Qh4 {[%clk 0:00:48]} 29. Rd1 {[%clk 0:01:02]}  Rxe5 {[%clk 0:00:39]} 30. Qd6 {[%clk 0:01:01]}  Re1+ {[%clk 0:00:35]} 31. Kh2 {[%clk 0:00:57]}  Rff1 {[%clk 0:00:28]} 32. Qb8+ {[%clk 0:00:43]}  Kg7 {[%clk 0:00:26]} 33. Rd7+ {[%clk 0:00:31]}  Kh6 {[%clk 0:00:24]} 34. g3 {[%clk 0:00:07]}  Rf2# {[%clk 0:00:21]} 0-1


[Site "https://www.chess.com"]